bitfinex/quotes_SOLUSD_20240809
["timestamp","ask_amount","ask_price","bid_price","bid_amount"]
[1723178954582,27.1,157.5,157.44,15.879]
[1723178954778,20.0,157.49,157.44,15.879]
[1723178954999,47.1,157.49,157.44,15.879]
[1723178955392,6.35,157.48,157.44,15.879]
[1723178955724,27.1,157.51,157.46,15.8762]
[1723178955885,27.1,157.52,157.48,6.3498]
[1723178956218,27.1,157.53,157.49,6.3495]
[1723178956710,27.1,157.53,157.41,6.3623]
[1723178956711,27.1,157.5,157.43,15.8799]
[1723178957090,6.3492,157.5,157.45,6.3508]
[1723178958188,6.3496,157.49,157.43,42.9799]
[1723178959697,6.3496,157.49,157.44,6.3512]
[1723178960231,27.1,157.51,157.43,42.9799]
[1723178960417,27.1,157.51,157.44,72.1]
[1723178960723,27.1,157.51,157.47,15.8752]
[1723178961615,27.1,157.51,157.48,6.35]
[1723178961790,27.1,157.51,157.47,15.8752]
[1723178962206,27.1,157.51,157.47,22.2255]
[1723178962796,27.1,157.52,157.48,6.3499]
[1723178963016,27.1,157.52,157.47,22.2255]
[1723178963607,33.4487,157.52,157.47,22.2255]
[1723178964533,27.1,157.52,157.49,6.3496]
[1723178964698,27.1,157.55,157.49,6.3496]
[1723178964896,20.0,157.54,157.5,6.3492]
[1723178965425,26.3476,157.54,157.49,6.3495]
[1723178965610,6.348,157.53,157.48,33.4499]
[1723178966318,20.0,157.54,157.48,27.1]
[1723178966528,26.3476,157.54,157.49,6.3495]
[1723178967120,20.0,157.54,157.5,6.3491]
[1723178967506,6.348,157.53,157.48,6.3499]
[1723178967753,20.0,157.54,157.48,27.1]
[1723178968727,20.0,157.54,157.5,6.3491]
[1723178969031,26.3476,157.54,157.49,6.3492]
[1723178969696,44.9476,157.54,157.49,24.9492]
[1723178969897,18.6,157.52,157.47,31.5159]
[1723178970148,18.6,157.53,157.49,18.6]
[1723178970319,20.0,157.52,157.49,18.6]
[1723178971015,20.0,157.53,157.49,18.6]
[1723178971706,38.6,157.53,157.49,18.6]
[1723178972428,20.0,157.53,157.49,18.6]
[1723178972630,20.0,157.53,157.49,24.9494]
[1723178972805,18.6,157.54,157.5,6.3491]
[1723178973623,18.6,157.52,157.48,18.6]
[1723178973916,18.6,157.53,157.48,24.9496]
[1723178974115,18.6,157.53,157.47,31.5159]
[1723178974116,18.6,157.53,157.49,18.6]
[1723178974433,18.6,157.53,157.49,24.9495]
[1723178975327,18.6,157.54,157.5,24.949]
[1723178975823,18.6,157.54,157.49,24.9495]
[1723178976032,24.9478,157.54,157.49,24.9495]
[1723178976217,18.6,157.53,157.49,24.9495]
[1723178977226,18.6,157.54,157.49,24.9495]
[1723178977429,24.9477,157.54,157.49,24.9495]
[1723178977942,18.6,157.53,157.49,24.9495]
[1723178978227,24.9477,157.54,157.49,24.9495]
[1723178980017,24.9464,157.57,157.53,18.6]
[1723178980233,20.0,157.56,157.53,18.6]
[1723178981637,20.0,157.56,157.52,18.6]
[1723178983124,20.0,157.56,157.53,18.6]
[1723178983511,20.0,157.57,157.53,24.9479]
[1723178983814,18.6,157.56,157.5,22.2219]
[1723178984009,18.6,157.55,157.51,18.6]
[1723178984420,18.6,157.56,157.51,18.6]
[1723178984736,24.9469,157.56,157.51,24.9485]
[1723178985432,24.9469,157.56,157.52,18.6]
[1723178985738,18.6,157.56,157.52,24.9483]
[1723178986536,20.0,157.57,157.53,18.6]
[1723178986738,18.6,157.56,157.52,24.9483]
[1723178987038,20.0,157.57,157.54,6.3475]
[1723178987242,20.0,157.57,157.54,18.6]
[1723178987413,20.0,157.57,157.52,15.87]
[1723178987414,44.9464,157.57,157.52,15.87]
[1723178987621,44.9464,157.57,157.53,18.6]
[1723178989826,38.6,157.57,157.53,24.9479]
[1723178990234,44.9464,157.57,157.53,18.6]
[1723178990635,6.3468,157.56,157.53,18.6]
[1723178990839,44.9464,157.57,157.53,18.6]
[1723178992426,18.6,157.56,157.5,6.3488]
[1723178992757,20.0,157.57,157.51,24.9487]
[1723178992758,18.6,157.55,157.51,24.9487]
[1723178993035,18.6,157.56,157.52,18.6]
[1723178993236,20.0,157.57,157.51,69.9487]
[1723178993237,18.6,157.55,157.51,69.9487]
[1723178993438,24.9472,157.55,157.51,18.6]
[1723178994022,6.3481,157.53,157.5,18.6]
[1723178994241,6.3481,157.53,157.48,40.8242]
[1723178994242,18.6,157.52,157.48,40.8242]
[1723178994439,18.6,157.51,157.48,15.8743]
[1723178994928,18.6,157.51,157.48,34.4743]
[1723178995125,18.6,157.51,157.48,15.8743]
[1723178996042,18.6,157.51,157.48,34.4743]
[1723178996927,18.6,157.5,157.47,21.9143]
[1723178997642,18.6,157.49,157.47,15.6407]
[1723178997846,18.6,157.48,157.45,6.3512]
[1723178998018,18.6,157.48,157.44,40.8295]
[1723178998221,74.4,157.52,157.43,28.5037]
[1723178998222,18.6,157.46,157.43,28.5037]
[1723178998417,18.6,157.46,157.43,15.8684]
[1723178998638,18.6,157.45,157.41,22.2346]
[1723178998825,18.6,157.43,157.39,40.1314]
[1723178999038,18.6,157.43,157.4,6.353]
[1723178999939,18.6,157.42,157.4,6.353]
[1723179000441,18.6,157.42,157.39,21.77]
[1723179001348,18.6,157.41,157.38,7.1643315]
[1723179001548,18.6,157.4,157.38,0.8104315]
[1723179001927,15.8761,157.47,157.38,0.8104315]
[1723179002127,18.6,157.43,157.4,6.3528]
[1723179002438,20.0,157.46,157.39,6.3536]
[1723179002439,18.6,157.42,157.39,6.3536]
[1723179003037,6.3516,157.45,157.4,6.353]
[1723179003355,18.6,157.43,157.4,6.353]
[1723179003651,18.6,157.42,157.4,6.353]
[1723179003948,20.0,157.44,157.41,6.3528]
[1723179004257,18.6,157.44,157.4,6.3532]
[1723179004446,18.6,157.42,157.39,22.2367]
[1723179007542,6.3515,157.45,157.39,40.8367]
[1723179007761,38.6,157.44,157.39,40.8367]
[1723179008844,18.6,157.43,157.39,40.8367]
[1723179009750,18.6,157.43,157.39,22.2367]
[1723179010249,18.6,157.43,157.39,40.8367]
[1723179012142,18.6,157.43,157.39,22.2367]
[1723179012343,18.6,157.43,157.38,19.4104315]
[1723179012344,18.6,157.41,157.38,7.1643315]
[1723179012545,18.6,157.4,157.38,0.8104315]
[1723179012780,18.6,157.41,157.38,0.8104315]
[1723179013057,18.6,157.41,157.38,7.1644315]
[1723179013254,18.6,157.41,157.38,0.8104315]
[1723179015070,18.6,157.4,157.38,0.8104315]
[1723179015568,16.3018,157.46,157.38,19.4104315]
[1723179015765,18.6,157.42,157.38,25.7644315]
[1723179016073,18.6,157.42,157.38,7.1644315]
[1723179016868,18.6,157.42,157.38,25.7644315]
[1723179017070,24.9516,157.44,157.39,18.6]
[1723179017376,38.6,157.43,157.39,18.6]
[1723179017868,44.9521,157.43,157.38,35.2947315]
[1723179018074,18.6,157.42,157.38,35.2947315]
[1723179018764,18.6,157.42,157.38,23.0487315]
[1723179019480,44.9521,157.43,157.38,41.6487315]
[1723179019888,18.6,157.42,157.38,41.6487315]
[1723179024479,20.0,157.43,157.39,24.9536]
[1723179024657,38.6,157.43,157.39,24.9536]
[1723179025154,18.6,157.42,157.39,6.3536]
[1723179025483,18.6,157.41,157.38,0.8104315]
[1723179025978,24.9528,157.41,157.38,0.8104315]
[1723179026651,18.6,157.41,157.38,0.8104315]
[1723179028478,24.9524,157.42,157.38,0.8104315]
[1723179028784,20.0,157.43,157.38,64.4104315]
[1723179028959,18.6,157.43,157.39,18.6]
[1723179029284,18.6,157.43,157.39,6.3536]
[1723179029657,18.6,157.43,157.4,6.3531]
[1723179030089,18.6,157.43,157.38,19.4104315]
[1723179030090,18.6,157.42,157.38,19.4104315]
[1723179030469,18.6,157.42,157.38,25.7641315]
[1723179030786,18.6,157.42,157.38,7.1641315]
[1723179031296,18.6,157.41,157.38,0.8104315]
[1723179031662,24.9525,157.42,157.38,0.8104315]
[1723179031861,6.3525,157.42,157.38,25.7644315]
[1723179032064,6.3521,157.43,157.38,25.7644315]
[1723179032278,18.6,157.42,157.38,25.7644315]
[1723179033200,18.6,157.42,157.39,6.3536]
[1723179033500,18.6,157.43,157.39,6.3536]
[1723179034192,18.6,157.42,157.39,6.3536]
[1723179034692,18.6,157.42,157.38,7.1643315]
[1723179035260,18.6,157.39,157.38,0.8104315]
[1723179035462,24.9536,157.39,157.38,0.8104315]
[1723179035864,89.9779,157.44,157.38,0.8104315]
[1723179035865,6.3533,157.4,157.38,0.8104315]
[1723179036065,18.6,157.39,157.38,0.8104315]
[1723179036776,24.9536,157.39,157.38,0.8104315]
[1723179036975,44.9536,157.39,157.38,0.8104315]
[1723179038967,38.6,157.39,157.38,0.8104315]
[1723179039909,44.9536,157.39,157.38,0.8104315]
[1723179042712,26.3536,157.39,157.38,0.8104315]
[1723179042885,44.9536,157.39,157.38,0.8104315]
[1723179047119,6.3564,157.32,157.27,47.5162]
[1723179047327,18.6,157.31,157.28,6.3578]
[1723179047616,18.6,157.32,157.28,24.9578]
[1723179047918,18.6,157.33,157.29,6.3576]
[1723179048413,18.6,157.33,157.29,24.9576]
[1723179048586,18.6,157.34,157.3,6.3571]
[1723179048787,18.6,157.33,157.3,6.3571]
[1723179049003,18.6,157.34,157.3,6.3571]
[1723179049217,18.6,157.34,157.31,6.3568]
[1723179049508,18.6,157.34,157.29,34.494]
[1723179049690,18.6,157.34,157.3,45.0]
[1723179051022,6.3551,157.36,157.31,24.9568]
[1723179051217,18.6,157.35,157.31,24.9568]
[1723179051518,18.6,157.34,157.3,69.9572]
[1723179051717,24.9553,157.35,157.3,69.9572]
[1723179052118,18.6,157.34,157.3,69.9572]
[1723179053598,18.6,157.34,157.29,15.894]
[1723179053599,18.6,157.31,157.26,15.8971]
[1723179053802,18.6,157.3,157.26,34.4971]
[1723179054199,6.1468,157.35,157.27,18.6]
[1723179054403,20.0,157.34,157.28,24.958]
[1723179054614,18.6,157.32,157.28,6.358]
[1723179054801,18.6,157.31,157.27,24.9584]
[1723179055003,18.6,157.31,157.27,6.3584]
[1723179055429,18.6,157.28,157.22,32.6114315]
[1723179055596,18.6,157.28,157.22,7.1709315]
[1723179055597,18.6,157.23,157.22,7.1709315]
[1723179055928,32.1013,157.32,157.23,15.9002]
[1723179055929,38.2161,157.32,157.23,15.9002]
[1723179056217,20.0,157.31,157.22,0.8104315]
[1723179056422,35.8931,157.31,157.22,0.8104315]
[1723179056604,18.6,157.23,157.22,0.8104315]
[1723179056800,18.6,157.24,157.22,0.8104315]
[1723179057020,18.6,157.25,157.22,0.8104315]
[1723179057219,18.6,157.24,157.22,0.8104315]
[1723179057430,35.8931,157.31,157.22,0.8104315]
[1723179057599,6.359,157.26,157.22,0.8104315]
[1723179058006,18.6,157.25,157.22,0.8104315]
[1723179058719,24.9593,157.25,157.22,0.8104315]
[1723179058925,24.9598,157.24,157.22,0.8104315]
[1723179059128,18.6,157.24,157.22,0.8104315]
[1723179059814,24.9593,157.25,157.22,0.8104315]
[1723179060631,18.6,157.25,157.22,0.8104315]
[1723179060936,24.9593,157.25,157.22,0.8104315]
[1723179061304,18.6,157.24,157.22,0.8104315]
[1723179061707,18.6,157.25,157.22,0.8104315]
[1723179061927,24.9589,157.26,157.22,0.8104315]
[1723179062130,18.6,157.25,157.22,0.8104315]
[1723179062337,24.9594,157.25,157.22,0.8104315]
[1723179062817,18.6,157.25,157.22,0.8104315]
[1723179063339,9.96860645,157.29,157.22,0.8104315]
[1723179063340,18.6,157.24,157.22,0.8104315]
[1723179063519,24.9597,157.24,157.22,0.8104315]
[1723179063726,6.3597,157.24,157.22,0.8104315]
[1723179064942,25.86360645,157.29,157.22,0.8104315]
[1723179065115,18.6,157.27,157.22,19.4104315]
[1723179065313,20.0,157.26,157.22,19.4104315]
[1723179065931,6.3596,157.25,157.22,19.4104315]
[1723179066237,26.3589,157.26,157.22,19.4104315]
[1723179067540,6.3593,157.25,157.22,19.4104315]
[1723179067915,26.3589,157.26,157.22,19.4104315]
[1723179068323,26.3589,157.26,157.23,18.6]
[1723179068833,6.3593,157.25,157.22,0.8104315]
[1723179069014,6.3593,157.25,157.23,18.6]
[1723179069341,6.3593,157.25,157.22,19.4104315]
[1723179069550,6.3601,157.23,157.22,0.8104315]
[1723179070138,20.0,157.26,157.22,19.4104315]
[1723179070636,38.6,157.26,157.22,0.8104315]
[1723179071214,20.0,157.26,157.22,19.4104315]
[1723179071433,18.6,157.26,157.22,19.4104315]
[1723179071620,6.3597,157.24,157.22,0.8104315]
[1723179072438,26.3594,157.25,157.22,19.4104315]
[1723179072866,26.3594,157.25,157.22,0.8104315]
[1723179072867,24.9601,157.23,157.22,0.8104315]
[1723179073055,24.9601,157.23,157.22,3.15e-05]
[1723179073340,89.9601,157.23,157.22,3.15e-05]
[1723179074226,89.9601,157.23,157.12,6.63239447]
[1723179074227,15.9027,157.21,157.12,6.63239447]
[1723179074435,6.3633,157.15,157.12,6.63239447]
[1723179074741,18.6,157.17,157.12,6.63239447]
[1723179074909,6.3629,157.16,157.13,18.6]
[1723179075348,24.9625,157.18,157.13,18.6]
[1723179075541,20.0,157.17,157.14,18.6]
[1723179075835,2.45176329,157.33,157.12,22.54369447]
[1723179075836,21.9381,157.25,157.16,18.6]
[1723179076041,18.6,157.22,157.12,96.94369447]
[1723179076223,18.6,157.22,157.12,22.54369447]
[1723179076428,6.3609,157.21,157.17,18.6]
[1723179076671,18.6,157.22,157.15,15.9083]
[1723179076672,18.6,157.24,157.15,15.9083]
[1723179076840,6.1322,157.25,157.12,6.63239447]
[1723179076841,6.363,157.16,157.12,6.63239447]
[1723179077044,6.3633,157.15,157.12,6.63239447]
[1723179077244,6.363,157.16,157.12,25.23239447]
[1723179077444,24.9624,157.18,157.13,18.6]
[1723179077665,6.363,157.16,157.12,25.23239447]
[1723179078147,18.6,157.18,157.12,25.23239447]
[1723179078148,6.3625,157.17,157.13,18.6]
[1723179080155,6.3625,157.17,157.14,18.6]
[1723179081350,6.3625,157.17,157.12,12.99689447]
[1723179081553,6.3625,157.17,157.13,18.6]
[1723179082244,6.3633,157.16,157.12,6.63239447]
[1723179082567,6.3633,157.16,157.13,18.6]
[1723179083461,6.3641,157.13,157.12,6.63239447]
[1723179083673,24.9641,157.13,157.12,6.63239447]
[1723179084048,44.9641,157.13,157.12,6.63239447]
[1723179084275,44.9641,157.13,157.12,2.82209447]
[1723179084576,44.9641,157.13,157.07,3.32367347]
[1723179084577,6.3653,157.11,157.07,21.92367347]
[1723179084784,38.6,157.13,157.08,18.6]
[1723179084785,26.3646,157.12,157.08,18.6]
[1723179084949,6.5762,157.17,157.1,18.6]
[1723179084950,6.3637,157.14,157.1,18.6]
[1723179085288,6.3649,157.11,157.07,0.8104315]
[1723179085578,6.3658,157.09,157.07,0.8104315]
[1723179085748,18.6,157.12,157.07,0.8104315]
[1723179085945,6.3661,157.08,157.07,0.8104315]
[1723179086260,6.3657,157.1,157.07,0.8104315]
[1723179086571,24.9661,157.08,157.07,0.8104315]
[1723179086772,20.0,157.08,157.07,0.8104315]
[1723179087147,26.3661,157.08,157.07,0.8104315]
[1723179087586,20.0,157.08,157.07,0.8104315]
[1723179087905,26.3661,157.08,157.07,0.8104315]
[1723179088182,6.63983535,157.1,157.07,0.8104315]
[1723179088353,6.3629,157.16,157.1,6.3653]
[1723179088546,18.6,157.16,157.07,16.7266315]
[1723179088776,18.6,157.16,157.1,24.9652]
[1723179088777,6.3633,157.15,157.1,24.9652]
[1723179088957,18.6,157.15,157.07,16.7266315]
[1723179089157,29.23245271,157.2,157.15,6.3629]
[1723179089661,6.3622,157.18,157.13,22.2743]
[1723179090447,27.25,157.15,157.09,15.9135]
[1723179090649,6.3629,157.16,157.11,6.3649]
[1723179090853,6.3629,157.16,157.09,15.9135]
[1723179091062,27.25,157.17,157.09,15.9135]
[1723179091455,33.6133,157.15,157.09,22.2792]
[1723179091695,6.364,157.14,157.09,15.9135]
[1723179091867,6.3645,157.13,157.07,0.8104315]
[1723179092063,6.2007,157.19,157.07,28.0604315]
[1723179092064,27.25,157.16,157.07,28.0604315]
[1723179092373,6.3637,157.14,157.09,22.2798]
[1723179092570,33.6137,157.14,157.09,15.9141]
[1723179092747,6.3642,157.13,157.09,15.9141]
[1723179092952,33.6137,157.14,157.09,22.2797]
[1723179093154,27.25,157.14,157.09,15.9141]
[1723179093586,6.3645,157.13,157.07,0.8104315]
[1723179093882,33.6138,157.14,157.07,0.8104315]
[1723179094081,33.6138,157.14,157.08,6.3661]
[1723179094266,26.3642,157.13,157.08,6.3661]
[1723179094585,27.25,157.12,157.07,0.8104315]
[1723179094998,27.25,157.12,157.07,16.7266315]
[1723179095192,27.25,157.12,157.07,0.8104315]
[1723179095494,33.6154,157.1,157.07,0.8104315]
[1723179095791,6.3659,157.09,157.07,0.8104315]
[1723179096078,27.25,157.1,157.07,0.8104315]
[1723179097953,33.6157,157.1,157.07,0.8104315]
[1723179098463,33.6154,157.1,157.07,0.8104315]
[1723179098865,27.25,157.08,157.07,0.8104315]
[1723179099051,33.6161,157.08,157.07,0.8104315]
[1723179099261,53.6161,157.08,157.07,0.8104315]
[1723179099660,20.0,157.08,157.07,0.8104315]
[1723179100164,27.25,157.09,157.07,0.8104315]
[1723179101090,33.6158,157.09,157.07,0.8104315]
[1723179102404,27.25,157.09,157.07,0.8104315]
[1723179103374,6.3661,157.08,157.07,0.8104315]
[1723179103672,33.6157,157.09,157.07,0.8104315]
[1723179108701,6.3661,157.08,157.07,0.8104315]
[1723179109277,27.25,157.09,157.07,0.8104315]
[1723179109697,18.71,157.08,157.07,0.8104315]
[1723179110123,2.54327233,157.18,157.07,0.8104315]
[1723179110124,10.53723843,157.16,157.07,0.8104315]
[1723179110429,18.71,157.1,157.07,7.1765315]
[1723179111098,18.71,157.1,157.07,0.8104315]
[1723179111303,6.3642,157.13,157.08,6.3661]
[1723179111487,10.53723843,157.16,157.07,0.8104315]
[1723179111488,18.71,157.1,157.07,23.3496315]
[1723179111803,27.27,157.12,157.08,6.3661]
[1723179112702,10.53723843,157.16,157.14,6.3633]
[1723179112904,10.53723843,157.16,157.13,15.9102]
[1723179113201,37.80723843,157.16,157.1,15.9133]
[1723179113785,27.27,157.16,157.1,15.9133]
[1723179113986,27.27,157.16,157.11,6.3645]
[1723179114424,33.6337,157.14,157.1,15.9133]
[1723179114610,27.27,157.14,157.11,6.3648]
[1723179115012,27.27,157.14,157.1,15.9133]
[1723179115416,27.27,157.14,157.1,22.2785]
[1723179115814,27.27,157.16,157.12,6.3645]
[1723179116039,37.78383923,157.2,157.08,6.4499]
[1723179116040,27.27,157.18,157.13,15.9102]
[1723179116417,27.27,157.18,157.13,22.2741]
[1723179116726,27.27,157.18,157.14,6.3636]
[1723179117513,44.14513923,157.2,157.15,6.3632]
[1723179118240,10.51383923,157.2,157.15,32.2054]
[1723179118428,10.51383923,157.2,157.15,38.8153]
[1723179118911,10.51383923,157.2,157.19,6.3617]
[1723179119235,27.27,157.22,157.19,6.3617]
[1723179119419,27.27,157.22,157.18,6.3621]
[1723179119611,27.27,157.22,157.19,6.3616]
[1723179120015,27.27,157.22,157.18,6.3621]
[1723179121046,27.27,157.22,157.17,22.2678]
[1723179121441,27.27,157.22,157.17,15.9054]
[1723179121821,27.27,157.22,157.19,6.3614]
[1723179122229,27.27,157.24,157.19,6.3614]
[1723179122544,6.3601,157.23,157.18,6.3619]
[1723179122729,27.27,157.2,157.13,15.9094]
[1723179122936,33.6313,157.2,157.14,6.3634]
[1723179123244,33.6313,157.2,157.14,6.3633]
[1723179123429,27.27,157.18,157.13,22.2734]
[1723179123820,27.27,157.18,157.14,6.3636]
[1723179124020,6.3645,157.12,157.11,22.6826]
[1723179124219,15.9047,157.19,157.07,39.4084315]
[1723179124220,27.27,157.14,157.07,39.4084315]
[1723179124459,27.27,157.12,157.07,23.4930315]
[1723179124626,33.6354,157.1,157.07,17.1501315]
[1723179125053,27.27,157.1,157.07,17.1501315]
[1723179125557,27.27,157.1,157.07,0.8104315]
[1723179125923,33.6354,157.1,157.07,0.8104315]
[1723179126130,27.27,157.1,157.07,0.8104315]
[1723179126958,27.27,157.08,157.07,0.8104315]
[1723179130124,33.6361,157.08,157.07,0.8104315]
[1723179130437,27.27,157.08,157.07,0.8104315]
[1723179131522,33.6361,157.08,157.07,0.8104315]
[1723179134132,33.6361,157.08,156.91,19.63582342]
[1723179134133,87.7827,157.08,156.91,19.63582342]
[1723179134350,54.54,156.97,156.83,38.7332]
[1723179134535,33.6439,156.89,156.85,3.31917604]
[1723179134860,18.3802117,156.96,156.85,3.31917604]
[1723179134861,27.27,156.86,156.85,3.31917604]
[1723179135039,33.6451,156.86,156.85,3.31917604]
[1723179135229,6.377,156.82,156.78,2.21878722]
[1723179135433,27.27,156.81,156.78,2.21878722]
[1723179135945,27.27,156.81,156.79,6.3778]
[1723179136129,27.27,156.81,156.78,18.16418722]
[1723179136324,29.45068098,156.91,156.78,18.16418722]
[1723179136755,27.27,156.82,156.78,18.16418722]
[1723179136968,27.27,156.82,156.8,6.3775]
[1723179137131,27.27,156.83,156.82,6.3764]
[1723179137845,35.19,156.85,156.82,6.3764]
[1723179138234,35.19,156.85,156.83,6.3763]
[1723179138559,64.30968098,156.84,156.79,6.3776]
[1723179138764,29.11968098,156.84,156.82,6.3767]
[1723179139464,29.11968098,156.84,156.82,22.318]
[1723179140464,35.19,156.83,156.82,22.318]
[1723179140661,35.19,156.83,156.82,15.9413]
[1723179140961,35.19,156.83,156.78,15.9454]
[1723179141165,29.11968098,156.84,156.8,6.3775]
[1723179141467,35.19,156.8,156.78,22.3235]
[1723179142169,35.19,156.8,156.78,22.3237]
[1723179142375,35.19,156.8,156.76,21.775]
[1723179142663,35.19,156.8,156.78,6.3783]
[1723179143033,35.19,156.8,156.79,6.3779]
[1723179143258,35.19,156.8,156.77,15.9465]
[1723179143441,35.19,156.8,156.78,6.3781]
[1723179143640,6.61882707,156.79,156.78,6.3781]
[1723179144445,35.19,156.8,156.78,6.3781]
[1723179144754,35.19,156.8,156.79,6.3779]
[1723179144966,35.19,156.8,156.77,22.3249]
[1723179145132,35.19,156.8,156.77,15.9465]
[1723179145338,35.19,156.8,156.77,22.3248]
[1723179145538,35.19,156.8,156.77,15.9465]
[1723179146062,35.19,156.8,156.79,6.3779]
[1723179146456,35.19,156.8,156.77,15.9465]
[1723179146860,35.19,156.8,156.77,22.325]
[1723179147163,35.19,156.8,156.77,15.9465]
[1723179147458,10.74923167,156.83,156.8,15.4437]
[1723179147663,10.74923167,156.83,156.8,21.8212]
[1723179148031,10.74923167,156.83,156.75,32.7063315]
[1723179148032,6.61867911,156.82,156.76,15.9473]
[1723179148235,12.99537911,156.82,156.76,15.9473]
[1723179148461,35.19,156.81,156.76,15.9473]
[1723179148642,41.5671,156.81,156.76,15.9473]
[1723179148962,41.568,156.79,156.75,0.8104315]
[1723179149158,35.19,156.79,156.77,6.3787]
[1723179149361,35.19,156.81,156.76,15.9476]
[1723179149665,35.19,156.81,156.76,22.3264]
[1723179150238,12.99567911,156.82,156.76,15.9476]
[1723179150239,35.19,156.79,156.76,15.9476]
[1723179150459,35.19,156.79,156.76,22.3265]
[1723179150673,35.19,156.81,156.77,6.3787]
[1723179150845,35.19,156.81,156.78,6.3782]
[1723179151042,35.19,156.81,156.77,6.3787]
[1723179151466,35.19,156.81,156.78,6.3783]
[1723179151771,10.8449606,156.8,156.78,6.3783]
[1723179151975,10.8449606,156.8,156.77,6.3787]
[1723179152864,10.8449606,156.8,156.78,6.3781]
[1723179154183,10.8449606,156.8,156.76,15.9476]
[1723179154385,10.8449606,156.8,156.78,6.3783]
[1723179154685,10.8449606,156.8,156.76,15.9476]
[1723179154979,10.8449606,156.8,156.77,6.3787]
[1723179155557,10.8449606,156.8,156.79,6.3779]
[1723179155957,10.8449606,156.8,156.78,15.945]
[1723179156162,35.19,156.79,156.75,0.8104315]
[1723179156384,35.19,156.79,156.75,7.1899315]
[1723179156757,35.19,156.79,156.75,0.8104315]
[1723179157383,35.19,156.79,156.75,7.1899315]
[1723179157579,35.19,156.77,156.75,0.8104315]
[1723179158279,17.2226606,156.8,156.75,7.1897315]
[1723179158280,35.19,156.79,156.75,7.1897315]
[1723179158465,6.61207287,156.79,156.76,6.3791]
[1723179158780,41.80207287,156.79,156.75,0.8104315]
[1723179158980,6.61207287,156.79,156.75,16.7589315]
[1723179159179,6.61207287,156.79,156.75,23.1380315]
[1723179159396,6.61207287,156.79,156.75,16.7589315]
[1723179159880,6.61207287,156.79,156.76,6.3791]
[1723179160194,6.61207287,156.79,156.75,16.7589315]
[1723179160484,6.61207287,156.79,156.76,6.3791]
[1723179161588,6.61207287,156.79,156.75,16.7589315]
[1723179162092,6.61207287,156.79,156.77,6.3786]
[1723179162886,6.61207287,156.79,156.75,0.8104315]
[1723179163188,6.61207287,156.79,156.75,7.1898315]
[1723179163666,6.61207287,156.79,156.76,6.3791]
[1723179165080,6.61207287,156.79,156.75,0.8104315]
[1723179165272,6.61207287,156.79,156.75,7.1899315]
[1723179165462,6.3783,156.78,156.75,0.8104315]
[1723179165664,27.41,156.76,156.75,0.8104315]
[1723179166569,33.7888,156.77,156.75,0.8104315]
[1723179166773,27.41,156.76,156.75,0.8104315]
[1723179167494,27.41,156.76,156.66,1.27586527]
[1723179167495,6.3856,156.6,156.59,0.0049315]
[1723179167697,1.10732006,156.47,156.44,7.3790315]
[1723179168066,1.10732006,156.47,156.44,0.8104315]
[1723179168869,1.10732006,156.47,156.44,0.7201975]
[1723179171194,6.3916,156.46,156.44,0.7201975]
[1723179172056,1.10732006,156.47,156.44,0.7201975]
[1723179172501,1.10732006,156.47,156.45,35.35]
[1723179172665,6.62794441,156.5,156.49,35.35]